[Event "Snabb-SM för veteraner, 65+ 2019"]
[Site "Schackcentrum, Vegagatan 20, Gothenburg, Sweden"]
[Date "2019.10.06"]
[Round "10.7"]
[White "Nilsson, Weine"]
[Black "Degerfeldt, Sven"]
[Result "0-1"]
[TimeControl "15 minutes + 10 seconds per move from move one"]
[WhiteFideId "1716727"]
[BlackFideId "1717430"]
[WhiteElo "1847"]
[BlackElo "1822"]

1. Nf3 {[%clk 00:15:16]} {[%emt 00:00:04]} c5 {[%clk 00:15:18]} {[%emt
00:00:03]} 2. g3 {[%clk 00:15:23]} {[%emt 00:00:03]} b6 {[%clk 00:15:26]}
{[%emt 00:00:02]} 3. Bg2 {[%clk 00:15:31]} {[%emt 00:00:02]} Bb7 {[%clk
00:15:35]} 4. O-O {[%clk 00:15:38]} {[%emt 00:00:04]} Nf6 {[%clk 00:15:43]}
{[%emt 00:00:02]} 5. d3 {[%clk 00:15:45]} {[%emt 00:00:04]} e6 {[%clk
00:15:48]} {[%emt 00:00:05]} 6. e4 {[%clk 00:15:29]} {[%emt 00:00:26]} d6
{[%clk 00:15:50]} {[%emt 00:00:08]} 7. Nbd2 {[%clk 00:15:06]} {[%emt 00:00:34]}
Be7 {[%clk 00:15:51]} {[%emt 00:00:08]} 8. a4 {[%clk 00:15:11]} {[%emt
00:00:05]} Nbd7 {[%clk 00:15:00]} {[%emt 00:01:01]} 9. Re1 {[%clk 00:14:56]}
{[%emt 00:00:25]} Qc7 {[%clk 00:15:05]} {[%emt 00:00:05]} 10. Nc4 {[%clk
00:14:31]} {[%emt 00:00:35]} O-O {[%clk 00:14:20]} {[%emt 00:00:55]} 11. h3
{[%clk 00:13:50]} {[%emt 00:00:50]} a6 {[%clk 00:13:52]} {[%emt 00:00:39]} 12.
Na3 {[%clk 00:13:40]} {[%emt 00:00:20]} Bc6 {[%clk 00:13:30]} {[%emt 00:00:32]}
13. b3 {[%clk 00:13:21]} {[%emt 00:00:30]} Rfe8 {[%clk 00:12:06]} {[%emt
00:01:34]} 14. Bf4 {[%clk 00:12:53]} {[%emt 00:00:36]} Qb7 {[%clk 00:11:59]}
{[%emt 00:00:18]} 15. Nc4 {[%clk 00:12:25]} {[%emt 00:00:38]} e5 {[%clk
00:11:23]} {[%emt 00:00:46]} 16. Bd2 {[%clk 00:12:10]} {[%emt 00:00:25]} Nf8
{[%clk 00:11:07]} {[%emt 00:00:27]} 17. a5 {[%clk 00:12:00]} {[%emt 00:00:21]}
b5 {[%clk 00:11:15]} {[%emt 00:00:02]} 18. Nb6 {[%clk 00:12:08]} {[%emt
00:00:02]} Rad8 {[%clk 00:11:24]} {[%emt 00:00:01]} 19. c4 {[%clk 00:12:14]}
{[%emt 00:00:03]} b4 {[%clk 00:11:26]} {[%emt 00:00:08]} 20. Nh4 {[%clk
00:11:54]} {[%emt 00:00:30]} g6 {[%clk 00:11:32]} {[%emt 00:00:06]} 21. Nd5
{[%clk 00:11:25]} {[%emt 00:00:38]} Nxd5 {[%clk 00:11:31]} {[%emt 00:00:11]} 22.
cxd5 {[%clk 00:10:47]} {[%emt 00:00:48]} Bb5 {[%clk 00:11:36]} {[%emt
00:00:05]} 23. Bf1 {[%clk 00:10:45]} {[%emt 00:00:12]} Bxh4 {[%clk 00:10:33]}
{[%emt 00:01:13]} 24. gxh4 {[%clk 00:10:52]} {[%emt 00:00:03]} Qe7 {[%clk
00:10:31]} {[%emt 00:00:12]} 25. Qg4 {[%clk 00:10:17]} {[%emt 00:00:43]} Bd7
{[%clk 00:10:35]} {[%emt 00:00:08]} 26. Qg3 {[%clk 00:10:14]} {[%emt 00:00:10]}
Rb8 {[%clk 00:10:20]} {[%emt 00:00:28]} 27. Kh2 {[%clk 00:10:18]} {[%emt
00:00:06]} f5 {[%clk 00:09:23]} {[%emt 00:01:07]} 28. f4 {[%clk 00:09:53]}
{[%emt 00:00:35]} Qg7 {[%clk 00:09:18]} {[%emt 00:00:16]} 29. fxe5 {[%clk
00:09:22]} {[%emt 00:00:41]} dxe5 {[%clk 00:09:17]} {[%emt 00:00:10]} 30. exf5
{[%clk 00:08:31]} {[%emt 00:01:02]} Bxf5 {[%clk 00:08:53]} {[%emt 00:00:33]} 31.
Bg2 {[%clk 00:08:30]} {[%emt 00:00:10]} Nd7 {[%clk 00:08:29]} {[%emt 00:00:35]}
32. Rf1 {[%clk 00:08:20]} {[%emt 00:00:19]} Nf6 {[%clk 00:08:03]} {[%emt
00:00:37]} 33. Rae1 {[%clk 00:08:00]} {[%emt 00:00:30]} Nh5 {[%clk 00:07:41]}
{[%emt 00:00:31]} 34. Qf2 {[%clk 00:07:55]} {[%emt 00:00:14]} Bxd3 {[%clk
00:07:12]} {[%emt 00:00:40]} 35. Rg1 {[%clk 00:07:58]} {[%emt 00:00:07]} e4
{[%clk 00:06:41]} {[%emt 00:00:41]} 36. Bf1 {[%clk 00:07:17]} {[%emt 00:00:51]}
Rf8 {[%clk 00:04:52]} {[%emt 00:02:00]} 37. Qxc5 {[%clk 00:06:39]} {[%emt
00:00:47]} Qe5+ {[%clk 00:04:54]} {[%emt 00:00:07]} 38. Kh1 {[%clk 00:06:34]}
{[%emt 00:00:16]} Bxf1 {[%clk 00:04:48]} {[%emt 00:00:16]} 39. Rgxf1 {[%clk
00:06:02]} {[%emt 00:00:41]} Rxf1+ {[%clk 00:04:44]} {[%emt 00:00:14]} 40. Rxf1
{[%clk 00:06:07]} {[%emt 00:00:05]} Ng3+ {[%clk 00:04:49]} {[%emt 00:00:04]} 41.
Kg1 {[%clk 00:05:54]} {[%emt 00:00:22]} Nxf1 {[%clk 00:04:46]} {[%emt
00:00:15]} 42. Kxf1 {[%clk 00:06:02]} {[%emt 00:00:02]} Rf8+ {[%clk 00:04:54]}
{[%emt 00:00:01]} 43. Ke1 {[%clk 00:05:38]} {[%emt 00:00:34]} Qg3+ {[%clk
00:04:38]} {[%emt 00:00:27]} 44. Ke2 {[%clk 00:04:41]} {[%emt 00:01:07]} Qd3+
{[%clk 00:04:42]} {[%emt 00:00:05]} 0-1

[Event "Snabb-SM för veteraner, 65+ 2019"]
[Site "Schackcentrum, Vegagatan 20, Gothenburg, Sweden"]
[Date "2019.10.06"]
[Round "10.8"]
[White "Landin, Bo"]
[Black "Wahlstedt, Mats"]
[Result "1/2-1/2"]
[TimeControl "15 minutes + 10 seconds per move from move one"]
[WhiteFideId "1705261"]
[BlackFideId "1712250"]
[WhiteElo "1959"]
[BlackElo "1821"]

1. e4 {[%clk 00:12:02]} {[%emt 00:03:18]} c5 {[%clk 00:15:18]} {[%emt
00:00:03]} 2. Nf3 {[%clk 00:12:09]} {[%emt 00:00:03]} e6 {[%clk 00:15:27]}
{[%emt 00:00:02]} 3. d4 {[%clk 00:12:17]} {[%emt 00:00:01]} cxd4 {[%clk
00:15:35]} {[%emt 00:00:01]} 4. Nxd4 {[%clk 00:12:25]} {[%emt 00:00:01]} a6
{[%clk 00:15:44]} {[%emt 00:00:02]} 5. g3 {[%clk 00:12:33]} {[%emt 00:00:02]}
e5 {[%clk 00:14:50]} {[%emt 00:01:05]} 6. Ne2 {[%clk 00:11:28]} {[%emt
00:01:15]} Qc7 {[%clk 00:14:36]} {[%emt 00:00:23]} 7. Nbc3 {[%clk 00:11:23]}
{[%emt 00:00:15]} Bb4 {[%clk 00:14:36]} {[%emt 00:00:10]} 8. Bg2 {[%clk
00:11:28]} {[%emt 00:00:04]} Ne7 {[%clk 00:14:36]} {[%emt 00:00:10]} 9. O-O
{[%clk 00:11:32]} {[%emt 00:00:06]} O-O {[%clk 00:14:21]} {[%emt 00:00:25]} 10.
Bg5 {[%clk 00:11:06]} {[%emt 00:00:36]} f6 {[%clk 00:14:00]} {[%emt 00:00:32]}
11. Be3 {[%clk 00:11:13]} {[%emt 00:00:02]} Kh8 {[%clk 00:13:59]} {[%emt
00:00:11]} 12. a3 {[%clk 00:10:38]} {[%emt 00:00:45]} Bc5 {[%clk 00:13:57]}
{[%emt 00:00:12]} 13. Bxc5 {[%clk 00:10:04]} {[%emt 00:00:44]} Qxc5 {[%clk
00:14:04]} {[%emt 00:00:02]} 14. b4 {[%clk 00:10:08]} {[%emt 00:00:06]} Qc4
{[%clk 00:13:39]} {[%emt 00:00:35]} 15. Qd2 {[%clk 00:10:05]} {[%emt 00:00:13]}
b5 {[%clk 00:13:40]} {[%emt 00:00:09]} 16. Rfd1 {[%clk 00:09:41]} {[%emt
00:00:33]} Nbc6 {[%clk 00:13:29]} {[%emt 00:00:21]} 17. Bf1 {[%clk 00:09:15]}
{[%emt 00:00:36]} Qe6 {[%clk 00:13:18]} {[%emt 00:00:22]} 18. Nd5 {[%clk
00:09:09]} {[%emt 00:00:16]} Rb8 {[%clk 00:13:09]} {[%emt 00:00:18]} 19. Nxe7
{[%clk 00:08:12]} {[%emt 00:01:06]} Qxe7 {[%clk 00:12:48]} {[%emt 00:00:31]} 20.
Qd6 {[%clk 00:08:06]} {[%emt 00:00:17]} Rd8 {[%clk 00:12:20]} {[%emt 00:00:37]}
21. Rd2 {[%clk 00:07:54]} {[%emt 00:00:22]} Kg8 {[%clk 00:10:48]} {[%emt
00:01:42]} 22. Rad1 {[%clk 00:08:00]} {[%emt 00:00:04]} Kf8 {[%clk 00:10:55]}
{[%emt 00:00:03]} 23. Bh3 {[%clk 00:06:58]} {[%emt 00:01:12]} Qxd6 {[%clk
00:09:42]} {[%emt 00:01:24]} 24. Rxd6 {[%clk 00:07:03]} {[%emt 00:00:05]} Ke7
{[%clk 00:09:47]} {[%emt 00:00:05]} 25. c3 {[%clk 00:06:49]} {[%emt 00:00:25]}
Rb7 {[%clk 00:08:55]} {[%emt 00:01:02]} 26. Nc1 {[%clk 00:06:52]} {[%emt
00:00:06]} Rc7 {[%clk 00:08:58]} {[%emt 00:00:07]} 27. Nb3 {[%clk 00:06:50]}
{[%emt 00:00:11]} Nd4 {[%clk 00:08:26]} {[%emt 00:00:43]} 28. Nxd4 {[%clk
00:06:09]} {[%emt 00:00:51]} exd4 {[%clk 00:08:26]} {[%emt 00:00:09]} 29. R6xd4
{[%clk 00:05:34]} {[%emt 00:00:45]} Rxc3 {[%clk 00:08:30]} {[%emt 00:00:07]} 30.
R4d3 {[%clk 00:05:10]} {[%emt 00:00:33]} Rxd3 {[%clk 00:08:35]} {[%emt
00:00:04]} 31. Rxd3 {[%clk 00:05:19]} {[%emt 00:00:02]} Bb7 {[%clk 00:08:39]}
{[%emt 00:00:05]} 32. Bg2 {[%clk 00:05:12]} {[%emt 00:00:17]} Rc8 {[%clk
00:08:03]} {[%emt 00:00:47]} 33. Kf1 {[%clk 00:04:49]} {[%emt 00:00:33]} Rc1+
{[%clk 00:07:38]} {[%emt 00:00:35]} 34. Ke2 {[%clk 00:04:56]} {[%emt 00:00:03]}
Rc2+ {[%clk 00:07:27]} {[%emt 00:00:21]} 35. Rd2 {[%clk 00:03:05]} {[%emt
00:02:01]} Rxd2+ {[%clk 00:07:34]} {[%emt 00:00:03]} 36. Kxd2 {[%clk 00:03:14]}
{[%emt 00:00:01]} f5 {[%clk 00:07:42]} {[%emt 00:00:02]} 37. f3 {[%clk
00:03:20]} {[%emt 00:00:04]} fxe4 {[%clk 00:07:50]} {[%emt 00:00:02]} 38. fxe4
{[%emt 00:00:09]} Ke6 {[%clk 00:07:51]} 39. Ke3 {[%clk 00:03:08]} {[%emt
00:00:31]} Ke5 {[%clk 00:07:55]} {[%emt 00:00:05]} 40. Bf3 {[%clk 00:02:47]}
{[%emt 00:00:30]} d6 {[%clk 00:07:45]} {[%emt 00:00:20]} 41. Bg2 {[%clk
00:02:43]} {[%emt 00:00:14]} Bc6 {[%clk 00:07:35]} {[%emt 00:00:20]} 42. Bf3
{[%clk 00:02:39]} {[%emt 00:00:14]} Bb7 {[%clk 00:07:38]} {[%emt 00:00:07]} 43.
Bg2 {[%clk 00:02:46]} {[%emt 00:00:03]} Bc6 {[%clk 00:07:47]} {[%emt 00:00:01]}
44. Bf3 {[%clk 00:02:55]} 1/2-1/2

[Event "Snabb-SM för veteraner, 65+ 2019"]
[Site "Schackcentrum, Vegagatan 20, Gothenburg, Sweden"]
[Date "2019.10.06"]
[Round "10.9"]
[White "Herrman, Jan"]
[Black "Nordstrom, Per-Olov"]
[Result "1/2-1/2"]
[TimeControl "15 minutes + 10 seconds per move from move one"]
[WhiteFideId "1731882"]
[BlackFideId "1714317"]
[WhiteElo "1929"]
[BlackElo "1940"]

1. e4 {[%clk 00:15:17]} {[%emt 00:00:02]} c5 {[%clk 00:15:18]} {[%emt
00:00:02]} 2. Nf3 {[%clk 00:15:22]} {[%emt 00:00:05]} Nc6 {[%clk 00:15:26]}
{[%emt 00:00:02]} 3. d4 {[%clk 00:15:25]} {[%emt 00:00:07]} cxd4 {[%clk
00:15:32]} {[%emt 00:00:04]} 4. Nxd4 {[%clk 00:15:32]} {[%emt 00:00:02]} Nf6
{[%clk 00:15:38]} {[%emt 00:00:05]} 5. Nc3 {[%clk 00:15:37]} {[%emt 00:00:04]}
e5 {[%clk 00:15:42]} {[%emt 00:00:05]} 6. Ndb5 {[%clk 00:14:30]} {[%emt
00:01:18]} d6 {[%clk 00:15:48]} {[%emt 00:00:04]} 7. Bg5 {[%clk 00:14:35]}
{[%emt 00:00:05]} a6 {[%clk 00:15:49]} {[%emt 00:00:10]} 8. Na3 {[%clk
00:14:36]} {[%emt 00:00:10]} b5 {[%clk 00:15:52]} {[%emt 00:00:07]} 9. Nd5
{[%clk 00:14:20]} {[%emt 00:00:25]} Be7 {[%clk 00:15:53]} {[%emt 00:00:08]} 10.
Nxe7 {[%clk 00:13:35]} {[%emt 00:00:56]} Qxe7 {[%clk 00:15:37]} {[%emt
00:00:26]} 11. Bd3 {[%clk 00:13:42]} {[%emt 00:00:03]} h6 {[%clk 00:15:36]}
{[%emt 00:00:11]} 12. Bxf6 {[%clk 00:13:14]} {[%emt 00:00:38]} Qxf6 {[%clk
00:15:42]} {[%emt 00:00:04]} 13. O-O {[%clk 00:13:21]} {[%emt 00:00:03]} O-O
{[%clk 00:15:30]} {[%emt 00:00:21]} 14. c3 {[%clk 00:12:49]} {[%emt 00:00:43]}
Be6 {[%clk 00:15:08]} {[%emt 00:00:33]} 15. Nc2 {[%clk 00:12:42]} {[%emt
00:00:17]} Rfd8 {[%clk 00:14:14]} {[%emt 00:01:03]} 16. Ne3 {[%clk 00:12:36]}
{[%emt 00:00:17]} Ne7 {[%clk 00:14:07]} {[%emt 00:00:16]} 17. Qe2 {[%clk
00:12:18]} {[%emt 00:00:29]} d5 {[%clk 00:13:55]} {[%emt 00:00:22]} 18. exd5
{[%clk 00:11:45]} {[%emt 00:00:43]} Nxd5 {[%clk 00:13:41]} {[%emt 00:00:24]} 19.
Nxd5 {[%clk 00:11:05]} {[%emt 00:00:50]} Bxd5 {[%clk 00:13:45]} {[%emt
00:00:06]} 20. Be4 {[%clk 00:10:40]} {[%emt 00:00:35]} Qc6 {[%clk 00:13:06]}
{[%emt 00:00:50]} 21. Rfe1 {[%clk 00:08:48]} {[%emt 00:02:02]} f6 {[%clk
00:11:18]} {[%emt 00:01:28]} 1/2-1/2

[Event "Snabb-SM för veteraner, 65+ 2019"]
[Site "Schackcentrum, Vegagatan 20, Gothenburg, Sweden"]
[Date "2019.10.06"]
[Round "11.1"]
[White "Stroem, Leif"]
[Black "Alfven, Jorgen"]
[Result "1/2-1/2"]
[TimeControl "15 minutes + 10 seconds per move from move one"]
[WhiteFideId "1709410"]
[BlackFideId "1715950"]
[WhiteElo "2014"]
[BlackElo "1791"]

1. c4 {[%clk 00:15:19]} Nf6 {[%clk 00:15:18]} {[%emt 00:00:02]} 2. g3 {[%clk
00:15:28]} {[%emt 00:00:01]} e6 {[%clk 00:15:27]} {[%emt 00:00:01]} 3. Bg2
{[%clk 00:15:37]} {[%emt 00:00:01]} d5 {[%clk 00:15:35]} {[%emt 00:00:02]} 4.
Nf3 {[%clk 00:15:44]} {[%emt 00:00:02]} c5 {[%clk 00:15:33]} {[%emt 00:00:12]}
5. cxd5 {[%clk 00:15:49]} {[%emt 00:00:06]} exd5 {[%clk 00:15:23]} {[%emt
00:00:19]} 6. d4 {[%clk 00:15:58]} {[%emt 00:00:01]} Nc6 {[%clk 00:15:24]}
{[%emt 00:00:09]} 7. O-O {[%clk 00:15:55]} {[%emt 00:00:12]} b6 {[%clk
00:15:11]} {[%emt 00:00:23]} 8. Nc3 {[%clk 00:15:56]} {[%emt 00:00:09]} c4
{[%clk 00:14:42]} {[%emt 00:00:39]} 9. Bg5 {[%clk 00:15:27]} {[%emt 00:00:38]}
Be7 {[%clk 00:14:25]} {[%emt 00:00:28]} 10. Ne5 {[%clk 00:14:29]} {[%emt
00:01:08]} Bb7 {[%clk 00:11:31]} {[%emt 00:03:04]} 11. Qa4 {[%clk 00:10:39]}
{[%emt 00:04:00]} Rc8 {[%clk 00:11:32]} {[%emt 00:00:09]} 12. Bxf6 {[%clk
00:10:47]} {[%emt 00:00:02]} gxf6 {[%clk 00:11:40]} {[%emt 00:00:01]} 13. Ng4
{[%clk 00:10:31]} {[%emt 00:00:26]} h5 {[%clk 00:10:14]} {[%emt 00:01:36]} 14.
Ne3 {[%clk 00:09:47]} {[%emt 00:00:53]} Kf8 {[%clk 00:10:05]} {[%emt 00:00:19]}
15. Bxd5 {[%clk 00:07:51]} {[%emt 00:02:07]} Qd7 {[%clk 00:07:55]} {[%emt
00:02:20]} 16. Qxc4 {[%clk 00:06:50]} {[%emt 00:01:11]} h4 {[%clk 00:06:10]}
{[%emt 00:01:55]} 17. Qb5 {[%clk 00:04:07]} {[%emt 00:02:53]} hxg3 {[%clk
00:06:10]} {[%emt 00:00:10]} 18. fxg3 {[%clk 00:04:11]} {[%emt 00:00:06]} Qh3
{[%clk 00:06:08]} {[%emt 00:00:12]} 19. Rf2 {[%clk 00:04:17]} {[%emt 00:00:03]}
Nxd4 {[%clk 00:06:16]} {[%emt 00:00:03]} 20. Qd3 {[%clk 00:04:00]} {[%emt
00:00:27]} Bxd5 {[%clk 00:06:20]} {[%emt 00:00:05]} 21. Ncxd5 {[%clk 00:03:43]}
{[%emt 00:00:27]} Bc5 {[%clk 00:06:13]} {[%emt 00:00:17]} 22. b4 {[%clk
00:03:52]} {[%emt 00:00:01]} Nc2 {[%clk 00:05:26]} {[%emt 00:00:57]} 23. Rc1
{[%clk 00:03:24]} {[%emt 00:00:37]} Bxe3 {[%clk 00:05:15]} {[%emt 00:00:21]} 24.
Nxe3 {[%clk 00:03:32]} {[%emt 00:00:02]} Nxe3 {[%clk 00:04:58]} {[%emt
00:00:27]} 25. Rxc8+ {[%clk 00:03:40]} {[%emt 00:00:03]} Qxc8 {[%clk 00:05:07]}
{[%emt 00:00:01]} 26. Qxe3 {[%clk 00:03:45]} {[%emt 00:00:05]} Kg7 {[%clk
00:04:47]} {[%emt 00:00:30]} 27. Rf4 {[%clk 00:03:06]} {[%emt 00:00:49]} Rh6
{[%clk 00:04:27]} {[%emt 00:00:30]} 28. Qd2 {[%clk 00:02:51]} {[%emt 00:00:25]}
Qh3 {[%clk 00:04:30]} {[%emt 00:00:07]} 29. Rf2 {[%clk 00:02:57]} {[%emt
00:00:04]} Qe6 {[%clk 00:04:27]} {[%emt 00:00:13]} 30. a3 {[%clk 00:03:00]}
{[%emt 00:00:07]} Qb3 {[%clk 00:04:31]} {[%emt 00:00:06]} 31. Rf3 {[%clk
00:03:06]} {[%emt 00:00:05]} Qb1+ {[%clk 00:04:31]} {[%emt 00:00:10]} 32. Kg2
{[%clk 00:03:14]} {[%emt 00:00:02]} Qe4 {[%clk 00:04:34]} {[%emt 00:00:07]} 33.
Qd3 {[%clk 00:03:13]} {[%emt 00:00:11]} Qc6 {[%clk 00:04:16]} {[%emt 00:00:28]}
34. e4 {[%clk 00:03:17]} {[%emt 00:00:05]} Qe6 {[%clk 00:04:18]} {[%emt
00:00:08]} 35. Rf2 {[%clk 00:02:50]} {[%emt 00:00:37]} Qh3+ {[%clk 00:04:25]}
{[%emt 00:00:03]} 36. Kg1 {[%clk 00:02:58]} {[%emt 00:00:01]} Qe6 {[%clk
00:04:19]} {[%emt 00:00:15]} 37. Qd5 {[%clk 00:02:53]} {[%emt 00:00:16]} Qc8
{[%clk 00:04:04]} {[%emt 00:00:25]} 38. e5 {[%clk 00:02:55]} {[%emt 00:00:08]}
Qc1+ {[%clk 00:03:53]} {[%emt 00:00:20]} 39. Rf1 {[%clk 00:03:03]} {[%emt
00:00:02]} Qe3+ {[%clk 00:04:02]} {[%emt 00:00:01]} 40. Kg2 {[%clk 00:02:57]}
{[%emt 00:00:16]} Qe2+ {[%clk 00:04:05]} {[%emt 00:00:07]} 41. Rf2 {[%clk
00:02:59]} {[%emt 00:00:08]} Rxh2+ {[%clk 00:04:13]} {[%emt 00:00:02]} 42. Kxh2
{[%clk 00:03:08]} Qxf2+ {[%clk 00:04:21]} {[%emt 00:00:02]} 43. Kh3 {[%clk
00:03:18]} Qf1+ {[%clk 00:04:22]} {[%emt 00:00:10]} 44. Kh2 {[%clk 00:03:26]}
{[%emt 00:00:01]} Qf2+ {[%clk 00:04:30]} {[%emt 00:00:01]} 45. Kh3 {[%clk
00:03:35]} {[%emt 00:00:01]} Qf5+ {[%emt 00:00:13]} 1/2-1/2

[Event "Snabb-SM för veteraner, 65+ 2019"]
[Site "Schackcentrum, Vegagatan 20, Gothenburg, Sweden"]
[Date "2019.10.06"]
[Round "11.2"]
[White "Dolata, Henryk"]
[Black "Przysuski, Feliks"]
[Result "1/2-1/2"]
[TimeControl "15 minutes + 10 seconds per move from move one"]
[WhiteFideId "1709046"]
[BlackFideId "1712489"]
[WhiteElo "2064"]
[BlackElo "2008"]

1. e4 {[%clk 00:15:17]} {[%emt 00:00:02]} c5 {[%clk 00:15:12]} {[%emt
00:00:08]} 2. c3 {[%clk 00:15:26]} {[%emt 00:00:01]} Nf6 {[%emt 00:00:02]} 3.
e5 {[%emt 00:00:01]} Nd5 {[%clk 00:15:18]} {[%emt 00:00:01]} 4. d4 {[%clk
00:15:34]} {[%emt 00:00:02]} cxd4 {[%clk 00:15:27]} {[%emt 00:00:02]} 5. cxd4
{[%clk 00:15:41]} {[%emt 00:00:03]} Nc6 {[%clk 00:15:35]} {[%emt 00:00:01]} 6.
Nf3 {[%clk 00:15:50]} {[%emt 00:00:01]} d6 {[%clk 00:15:44]} 7. Bc4 {[%clk
00:15:56]} {[%emt 00:00:05]} Nb6 {[%clk 00:15:53]} 8. Bb5 {[%clk 00:16:06]}
{[%emt 00:00:02]} dxe5 {[%clk 00:16:02]} {[%emt 00:00:01]} 9. Nxe5 {[%clk
00:16:14]} {[%emt 00:00:01]} Bd7 {[%clk 00:16:11]} {[%emt 00:00:01]} 10. Bxc6
{[%clk 00:16:07]} {[%emt 00:00:17]} Bxc6 {[%clk 00:16:13]} {[%emt 00:00:07]} 11.
Nxc6 {[%clk 00:16:15]} {[%emt 00:00:02]} bxc6 {[%clk 00:16:21]} {[%emt
00:00:02]} 12. O-O {[%clk 00:16:22]} {[%emt 00:00:02]} e6 {[%clk 00:16:30]} 13.
Nc3 {[%clk 00:16:22]} {[%emt 00:00:12]} Be7 {[%clk 00:16:36]} {[%emt 00:00:04]}
14. Qf3 {[%clk 00:16:13]} {[%emt 00:00:19]} Qd7 {[%clk 00:16:44]} 15. Rd1
{[%clk 00:16:21]} {[%emt 00:00:04]} O-O {[%clk 00:16:51]} {[%emt 00:00:03]} 16.
Be3 {[%clk 00:16:03]} {[%emt 00:00:28]} Nd5 {[%clk 00:16:51]} {[%emt 00:00:11]}
17. Rac1 {[%clk 00:15:32]} {[%emt 00:00:42]} Rac8 {[%clk 00:16:54]} {[%emt
00:00:06]} 18. Na4 {[%clk 00:15:36]} {[%emt 00:00:06]} Qb7 {[%clk 00:16:41]}
{[%emt 00:00:23]} 19. b3 {[%clk 00:15:26]} {[%emt 00:00:19]} Ba3 {[%clk
00:16:29]} {[%emt 00:00:23]} 20. Nc5 {[%clk 00:14:45]} {[%emt 00:00:51]} Bxc5
{[%clk 00:16:30]} {[%emt 00:00:09]} 21. Rxc5 {[%clk 00:14:51]} {[%emt
00:00:04]} Rfd8 {[%clk 00:15:59]} {[%emt 00:00:40]} 22. Rdc1 {[%clk 00:14:49]}
{[%emt 00:00:12]} Nb4 {[%clk 00:16:07]} {[%emt 00:00:02]} 23. Qe2 {[%clk
00:14:47]} {[%emt 00:00:11]} Rd5 {[%clk 00:15:53]} {[%emt 00:00:25]} 24. h4
{[%clk 00:13:48]} {[%emt 00:01:10]} Rxc5 {[%clk 00:15:45]} {[%emt 00:00:18]} 25.
Rxc5 {[%clk 00:13:54]} {[%emt 00:00:04]} Nd5 {[%clk 00:15:52]} {[%emt
00:00:02]} 26. h5 {[%clk 00:13:42]} {[%emt 00:00:22]} h6 {[%clk 00:15:58]}
{[%emt 00:00:03]} 27. g4 {[%clk 00:12:00]} {[%emt 00:01:53]} Qe7 {[%clk
00:15:16]} {[%emt 00:00:52]} 28. Kg2 {[%clk 00:09:02]} {[%emt 00:03:07]} Qd6
{[%clk 00:13:27]} {[%emt 00:02:00]} 29. Qf3 {[%clk 00:08:50]} {[%emt 00:00:21]}
Rf8 {[%clk 00:12:28]} {[%emt 00:01:08]} 30. g5 {[%clk 00:07:08]} {[%emt
00:01:53]} hxg5 {[%clk 00:12:23]} {[%emt 00:00:15]} 31. Bxg5 {[%clk 00:07:16]}
{[%emt 00:00:02]} f6 {[%clk 00:12:25]} {[%emt 00:00:08]} 32. Be3 {[%clk
00:07:25]} {[%emt 00:00:02]} e5 {[%clk 00:12:25]} {[%emt 00:00:10]} 33. Qe4
{[%clk 00:06:47]} {[%emt 00:00:48]} exd4 {[%emt 00:00:09]} 34. Qxd4 {[%emt
00:00:52]} f5 {[%clk 00:11:20]} {[%emt 00:00:13]} 35. Bc1 {[%clk 00:05:55]}
{[%emt 00:01:03]} f4 {[%clk 00:11:20]} {[%emt 00:00:10]} 36. Bb2 {[%clk
00:05:48]} {[%emt 00:00:17]} f3+ {[%clk 00:11:16]} {[%emt 00:00:14]} 37. Kg1
{[%clk 00:05:49]} {[%emt 00:00:09]} Qe7 {[%clk 00:10:44]} {[%emt 00:00:42]} 38.
Bc1 {[%clk 00:03:17]} {[%emt 00:02:42]} Rf5 {[%clk 00:08:45]} {[%emt 00:02:08]}
39. Rxc6 {[%clk 00:02:14]} {[%emt 00:01:15]} Qe1+ {[%clk 00:08:50]} {[%emt
00:00:04]} 40. Kh2 {[%clk 00:02:22]} {[%emt 00:00:02]} Rxh5+ {[%clk 00:08:58]}
{[%emt 00:00:02]} 41. Kg3 {[%clk 00:02:32]} Qh1 {[%clk 00:05:55]} {[%emt
00:03:14]} 42. Rc8+ {[%clk 00:02:05]} {[%emt 00:00:37]} Kh7 {[%clk 00:06:00]}
{[%emt 00:00:04]} 43. Qe4+ {[%clk 00:02:08]} {[%emt 00:00:07]} g6 {[%clk
00:06:06]} {[%emt 00:00:03]} 44. Rc7+ {[%clk 00:01:44]} {[%emt 00:00:36]} Nxc7
{[%clk 00:06:11]} {[%emt 00:00:05]} 45. Qe7+ {[%clk 00:01:53]} Kg8 {[%clk
00:06:15]} {[%emt 00:00:06]} 46. Qd8+ {[%clk 00:01:52]} {[%emt 00:00:11]} Kf7
{[%clk 00:06:20]} {[%emt 00:00:06]} 47. Qd7+ {[%clk 00:01:30]} {[%emt
00:00:32]} Kg8 {[%clk 00:06:28]} 48. Qd8+ {[%emt 00:00:03]} Kf7 49. Qd7+ {[%emt
00:00:01]} Kf6 {[%emt 00:00:10]} 50. Bb2+ Kf7 {[%emt 00:00:10]} 51. Bc1+ {[%emt
00:00:05]} 1/2-1/2